bitfinex-derivatives/quotes_ETHF0:USTF0_20250105
["timestamp","ask_amount","ask_price","bid_price","bid_amount"]
[1736093889392,1.8805,3632.9,3632.8,0.2478]
[1736093892187,0.9651,3632.9,3632.8,0.2478]
[1736093892391,4.31470328,3633.2,3633.1,0.24778]
[1736093892594,4.31470328,3633.2,3633.1,2.45706282]
[1736093893598,4.31470328,3633.8,3633.2,0.24777]
[1736093893897,4.31470328,3633.8,3633.6,0.24774]
[1736093894400,4.31470328,3633.8,3633.5,1.143]
[1736093894594,4.31470328,3633.8,3633.6,0.24774]
[1736093894795,4.31470328,3633.8,3633.6,0.24775]
[1736093894991,0.41298727,3633.8,3633.5,1.39075]
[1736093895996,0.41298727,3633.8,3633.5,1.143]
[1736093896197,0.24774,3633.7,3633.5,1.143]
[1736093896594,4.97543055,3633.8,3633.5,1.143]
[1736093896798,4.72769055,3633.8,3633.5,1.39075]
[1736093897402,0.41298727,3633.7,3633.5,1.39075]
[1736093899001,4.31470328,3633.8,3633.5,1.39075]
[1736093899002,0.41298727,3633.8,3633.5,1.39075]
[1736093899201,0.41298727,3633.8,3633.6,0.24774]
[1736093900403,4.72769055,3633.8,3633.6,0.24774]
[1736093901104,4.72769055,3633.8,3633.7,0.24774]
[1736093901504,4.72769055,3633.8,3633.7,5.24774]
[1736093902104,4.72769055,3633.8,3633.7,0.24774]
[1736093902803,4.72769055,3634.6,3634.5,0.24768]
[1736093903013,4.72769055,3634.6,3634.5,1.38068]
[1736093903713,4.72769055,3634.6,3633.9,3.82711]
[1736093903714,4.72769055,3634.6,3633.9,3.2078]
[1736093904022,4.97537055,3634.6,3634.2,0.2477]
[1736093904519,0.24769,3634.5,3634.1,0.24771]
[1736093905419,0.2477,3634.4,3634.0,0.24771]
[1736093905722,4.97539055,3634.4,3634.0,0.24771]
[1736093906720,4.72769055,3634.4,3633.9,3.2078]
[1736093906924,0.24772,3634.0,3633.5,3.2078]
[1736093907119,1.8667,3633.9,3633.6,1.38074]
[1736093907428,2.8411,3633.9,3633.7,0.24774]
[1736093907727,2.8411,3633.9,3633.8,0.24773]
[1736093907926,2.8411,3633.9,3633.6,1.38074]
[1736093908426,3.25408727,3633.9,3633.7,0.24774]
[1736093909726,0.41298727,3633.8,3633.6,1.133]
[1736093909921,0.41298727,3633.8,3633.5,3.2078]
[1736093910426,0.41298727,3633.8,3633.6,0.24774]
[1736093910622,0.41298727,3633.8,3633.5,3.2078]
[1736093910623,0.41298727,3633.8,3633.7,0.24774]
[1736093911426,4.72769055,3633.8,3633.7,0.24774]
[1736093912529,4.31470328,3634.1,3634.0,0.24772]
[1736093912732,4.31470328,3634.1,3634.0,2.45700282]
[1736093913629,1.8824,3634.5,3634.4,0.24769]
[1736093913828,1.8824,3634.5,3634.4,1.38069]
[1736093919232,1.8824,3634.5,3634.4,3.58997282]
[1736093919431,6.85180397,3654.2,3634.4,3.34228282]
[1736093919432,5.26350328,3634.9,3634.4,3.34228282]
[1736093919632,5.26350328,3634.9,3634.8,2.45694282]
[1736093920635,5.26350328,3634.9,3634.8,0.24766]
[1736093920836,0.9488,3634.9,3634.8,0.24766]
[1736093921533,3.15808282,3634.9,3633.9,3.2078]
[1736093921733,0.9488,3634.9,3634.1,2.20928282]
[1736093921937,0.9488,3634.9,3634.3,0.2477]
[1736093921938,0.24767,3634.7,3634.3,0.2477]
[1736093922131,0.9061,3634.6,3634.3,0.2477]
[1736093922527,0.9061,3634.6,3634.4,0.24769]
[1736093922736,0.9061,3634.6,3634.3,0.24769]
[1736093922932,0.9061,3634.6,3634.5,0.24768]
[1736093923433,0.9488,3634.9,3634.4,2.20928282]
[1736093923637,5.26350328,3634.9,3634.7,0.24767]
[1736093923836,5.26350328,3634.9,3634.5,1.133]
[1736093924042,5.26350328,3634.9,3634.8,0.24766]
[1736093924729,1.36168744,3634.9,3634.8,0.24766]
[1736093925132,1.36168744,3634.9,3634.5,1.133]
[1736093925339,1.60934744,3634.9,3634.6,0.24768]
[1736093925540,1.60934744,3634.9,3634.5,1.38068]
[1736093925741,0.24767,3634.8,3634.5,1.133]
[1736093926641,0.9488,3634.9,3634.2,3.4555]
[1736093926941,0.24768,3634.6,3634.2,4.5885]
[1736093927342,0.24768,3634.6,3634.3,0.2477]
[1736093927544,0.24768,3634.7,3634.3,0.24769]
[1736093927840,0.24768,3634.6,3634.3,0.24769]
[1736093928036,0.24767,3634.7,3634.4,0.24769]
[1736093928239,0.24767,3634.7,3634.2,3.2078]
[1736093928441,0.41291287,3634.8,3634.2,3.2078]
[1736093928636,0.41291287,3634.8,3634.1,1.38071]
[1736093928637,3.2078,3634.5,3633.8,2.20928282]
[1736093928845,0.2477,3634.3,3633.9,0.24772]
[1736093929143,1.2087,3634.2,3633.9,0.24772]
[1736093929340,2.159,3634.2,3633.9,0.24772]
[1736093929844,1.9113,3634.2,3633.8,1.133]
[1736093930048,2.15901,3634.2,3633.9,0.24772]
[1736093930438,1.9113,3634.2,3633.8,1.133]
[1736093930637,1.9113,3634.2,3633.7,0.05]
[1736093930838,0.24771,3634.1,3633.7,0.05]
[1736093931139,0.24773,3633.9,3633.7,0.05]
[1736093931331,0.24773,3633.8,3633.7,0.05]
[1736093931743,3.2078,3633.9,3633.2,1.36777]
[1736093931744,0.24775,3633.6,3633.2,1.36777]
[1736093932044,0.9492,3633.5,3633.2,1.12]
[1736093932246,0.9352,3633.4,3633.2,0.24777]
[1736093932436,0.9352,3633.4,3633.0,4.3278]
[1736093932641,0.9352,3633.4,3633.3,0.24777]
[1736093933844,0.9352,3633.4,3633.0,3.2078]
[1736093934042,0.9352,3633.4,3633.0,4.3288]
[1736093934342,0.9352,3633.4,3633.3,0.24777]
[1736093935047,1.8436,3633.4,3633.3,0.24777]
[1736093939544,1.8436,3633.4,3633.0,4.3288]
[1736093939744,1.8436,3633.4,3633.3,0.24777]
[1736093940250,1.8436,3633.4,3633.1,0.24777]
[1736093940442,1.8436,3633.4,3633.0,4.3288]
[1736093940639,1.8436,3633.4,3633.2,0.24777]
[1736093940949,1.8436,3633.4,3633.1,0.24778]
[1736093941150,1.8436,3633.4,3633.0,3.2078]
[1736093941340,2.09136,3633.4,3633.0,3.45558]
[1736093941545,1.8436,3633.4,3633.0,3.2078]
[1736093941847,1.8436,3633.4,3633.3,0.24777]
[1736093942042,1.8436,3633.4,3633.2,0.24777]
[1736093942242,1.8436,3633.4,3633.3,0.24777]
[1736093942847,1.8436,3633.4,3633.0,3.2078]
[1736093943747,4.31470328,3633.5,3633.2,2.20928282]
[1736093943946,4.31470328,3633.5,3633.4,3.45556]
[1736093944252,4.31470328,3633.6,3633.5,0.24775]
[1736093945349,4.31470328,3633.6,3633.2,2.20928282]
[1736093945350,4.31470328,3633.6,3633.4,0.24776]
[1736093945650,0.9157,3633.5,3633.0,4.3288]
[1736093945846,0.9157,3633.5,3633.3,0.24776]
[1736093946743,0.9157,3633.5,3633.0,4.3288]
[1736093946943,0.9157,3633.5,3633.3,0.24776]
[1736093947152,0.9157,3633.5,3633.4,0.24776]
[1736093947353,0.9157,3633.5,3633.0,4.3288]
[1736093947542,0.9157,3633.5,3633.3,0.24776]
[1736093948552,0.9157,3633.5,3633.0,4.3288]
[1736093948854,7.60917001,3633.5,3633.1,0.24777]
[1736093949054,7.36141001,3633.5,3633.0,4.3288]
[1736093949258,4.15361001,3633.5,3633.2,0.24777]
[1736093949451,4.15361001,3633.5,3633.0,4.3288]
[1736093949749,4.40136001,3633.5,3633.1,0.24778]
[1736093949952,3.23791001,3633.4,3633.1,0.24778]
[1736093950352,3.23791001,3633.4,3633.2,0.24777]
[1736093950755,3.23791001,3633.4,3633.3,0.24777]
[1736093951156,3.65096321,3633.4,3633.3,0.24777]
[1736093955260,3.65096321,3633.4,3632.8,4.3288]
[1736093955460,0.24778,3633.2,3633.0,0.24778]
[1736093955760,0.8974,3633.1,3633.0,0.24778]
[1736093956055,0.24779,3633.0,3632.8,3.2078]
[1736093956251,0.24779,3633.0,3632.8,3.4556]
[1736093957158,0.24779,3632.9,3632.5,0.24782]
[1736093957361,0.8865,3632.8,3632.7,0.24781]
[1736093958860,0.8865,3632.8,3632.4,4.3288]
[1736093959061,0.8865,3632.8,3632.6,0.24781]
[1736093960563,0.8865,3632.8,3632.4,4.3288]
[1736093960764,1.1343,3632.8,3632.4,4.3168]
[1736093960959,0.24781,3632.7,3632.4,3.45563]
[1736093961266,0.24782,3632.5,3632.4,3.2078]
[1736093962963,0.24782,3632.5,3632.0,0.24785]
[1736093962964,0.24784,3632.3,3632.0,0.24785]
[1736093963471,1.8534,3632.4,3631.6,4.9925]
[1736093963655,2.10123,3632.4,3631.9,0.24785]
[1736093963859,0.24785,3632.2,3631.8,0.24786]
[1736093964158,0.9402,3632.1,3631.6,3.2078]
[1736093964363,2.20928282,3631.9,3631.6,3.2078]
[1736093964868,1.16507,3631.8,3631.6,3.2078]
[1736093965060,0.9362,3631.7,3631.6,3.2078]
[1736093965261,0.9362,3631.7,3631.6,0.24788]
[1736093965772,0.9362,3631.7,3631.5,0.24789]
[1736093965966,0.9362,3631.7,3631.6,0.24788]
[1736093966472,0.9362,3631.7,3631.2,1.109]
[1736093966674,0.9362,3631.7,3631.5,0.24789]
[1736093967068,0.9362,3631.7,3631.0,1.109]
[1736093967271,1.18408,3631.7,3631.4,0.24789]
[1736093967778,4.39188,3631.7,3631.3,0.2479]
[1736093968167,4.39188,3631.7,3631.0,1.109]
[1736093968371,4.144,3631.7,3631.0,1.109]
[1736093968575,4.39188,3631.7,3631.4,0.24789]
[1736093968982,4.39188,3631.7,3631.0,1.109]
[1736093969177,4.39188,3631.7,3631.3,0.2479]
[1736093969481,4.144,3631.7,3631.3,0.2479]
[1736093969674,0.24789,3631.6,3631.3,0.2479]
[1736093970075,0.24788,3631.6,3631.2,0.24791]
[1736093970578,0.2479,3631.4,3631.1,0.24791]
[1736093970882,0.9328,3631.3,3631.1,0.24791]
[1736093971683,0.8815,3631.2,3631.1,0.24791]
[1736093973884,4.144,3631.7,3630.9,2.20928282]
[1736093974179,0.61955,3632.6,3631.7,0.24787]
[1736093974180,8.58222864,3632.2,3631.7,0.24787]
[1736093974388,6.34422864,3632.2,3631.7,4.56567]
[1736093974682,5.37442864,3632.2,3631.7,4.56567]
[1736093974984,3.23791001,3632.0,3631.9,0.24786]
[1736093975181,3.23791001,3632.0,3631.9,2.45714282]
[1736093976182,1.9365,3632.8,3631.9,2.20928282]
[1736093976575,1.9365,3632.8,3632.5,0.24782]
[1736093977077,1.9365,3632.8,3632.7,0.24781]
[1736093977378,1.9365,3632.8,3632.1,3.2078]
[1736093977681,3.23791001,3633.0,3632.9,0.24779]
[1736093978983,0.9149,3633.3,3632.6,1.11]
[1736093979183,0.9149,3633.3,3633.1,0.24778]
[1736093979777,3.23791001,3633.4,3633.1,2.20928282]
[1736093979977,3.23791001,3633.4,3633.3,0.24777]
[1736093980479,3.23791001,3633.4,3633.1,2.16852931]
[1736093980880,3.23791001,3633.4,3633.3,0.24777]
[1736093981588,5.26930328,3633.6,3633.1,2.16852931]
[1736093981589,0.9546,3633.6,3633.1,2.16852931]
[1736093981789,0.9546,3633.6,3633.5,0.24775]
[1736093982788,0.9546,3633.6,3633.2,0.24777]
[1736093983089,0.9546,3633.6,3633.3,0.24777]
[1736093983389,0.9546,3633.6,3633.2,0.24777]
[1736093984386,0.9546,3633.6,3632.9,3.2078]
[1736093984587,0.9546,3633.6,3633.3,0.24776]
[1736093985182,0.9546,3633.6,3632.9,3.2078]
[1736093985489,0.24777,3633.2,3632.9,3.2078]
[1736093985683,1.14239,3633.1,3632.6,0.24781]
[1736093985888,1.14239,3633.1,3632.8,0.2478]
[1736093985889,1.7736,3633.1,3632.8,0.2478]
[1736093986193,0.8985,3633.0,3632.8,0.2478]
[1736093986688,0.8985,3633.0,3632.6,0.24781]
[1736093986990,0.8985,3633.0,3632.5,4.3168]
[1736093987192,0.24781,3632.7,3632.5,4.3168]
[1736093987592,0.24781,3632.7,3632.5,3.2078]
[1736093988281,3.10778282,3633.0,3632.5,3.2078]
[1736093988486,0.2478,3632.9,3632.5,3.45562]
[1736093988994,3.48571001,3632.9,3632.5,3.45562]
[1736093989288,3.23791001,3632.9,3632.5,3.2078]
[1736093989692,0.24781,3632.7,3632.5,3.45562]
[1736093991396,0.24781,3632.6,3632.5,3.2078]
[1736093991587,0.24781,3632.7,3632.5,3.2078]
[1736093991787,0.24781,3632.7,3632.5,3.45562]
[1736093991991,3.23791001,3632.8,3632.5,3.2078]
[1736093992194,0.24781,3632.6,3632.5,3.2078]
[1736093992994,0.24781,3632.7,3632.5,3.2078]
[1736093994900,2.15636643,3632.6,3632.5,3.2078]
[1736093995099,2.15636643,3632.6,3632.4,0.24782]
[1736093995300,2.15636643,3632.6,3632.5,0.24782]
[1736093996293,3.23791001,3632.7,3632.5,0.24782]
[1736093996294,3.48572001,3632.7,3632.5,0.24782]
[1736093996494,0.24782,3632.6,3632.3,0.24783]
[1736093997596,2.15690196,3632.5,3632.3,0.24783]
[1736093997995,0.9012,3632.4,3632.3,0.24783]
[1736093998602,2.15690196,3632.5,3632.4,0.24783]
[1736093999505,2.15690196,3632.5,3632.2,3.2078]
[1736093999698,1.13063,3632.4,3632.2,0.24784]
[1736093999899,0.9494,3632.3,3632.2,0.24784]
[1736094000099,0.9494,3632.3,3631.9,2.20928282]
[1736094000301,0.24785,3632.1,3631.8,0.24786]
[1736094000501,1.14894,3632.2,3631.9,0.24786]
[1736094001005,4.35674,3632.2,3631.9,0.24786]
[1736094001607,2.15690196,3632.0,3631.9,0.24786]
[1736094004302,2.15690196,3632.1,3631.8,1.103]
[1736094004503,2.15690196,3632.1,3632.0,0.24785]
[1736094004703,2.15690196,3632.1,3631.8,1.103]
[1736094004903,2.15690196,3632.1,3631.9,0.24786]
[1736094005706,2.15690196,3632.0,3631.9,0.24786]
[1736094006414,2.15690196,3632.0,3631.8,1.103]
[1736094006607,2.15690196,3632.0,3631.9,0.24786]
[1736094006810,2.15690196,3632.0,3631.7,3.2078]
[1736094007109,2.40476196,3632.0,3631.8,1.103]
[1736094007312,2.40476196,3632.0,3631.8,1.35087]
[1736094007507,2.15690196,3632.0,3631.8,1.35087]
[1736094007900,2.40476196,3632.0,3631.8,0.24787]
[1736094008106,2.15690196,3631.9,3631.8,0.24787]
[1736094009814,1.43600196,3631.9,3631.8,0.96817]
[1736094011010,0.24782,3632.6,3632.3,0.24783]
[1736094011617,5.44719283,3632.9,3632.3,0.24783]
[1736094011811,2.08111,3632.7,3632.3,0.24783]
[1736094012010,1.8333,3632.7,3632.1,3.2078]
[1736094012315,3.23791001,3632.6,3632.5,0.24782]
[1736094012509,3.23791001,3632.6,3632.5,1.35082]
[1736094012704,3.23791001,3632.6,3632.5,4.55862]
[1736094013115,3.23791001,3632.9,3632.5,4.3108]
[1736094013311,3.23791001,3632.9,3632.8,0.2478]
[1736094014212,3.23791001,3632.9,3632.5,4.3108]
[1736094014417,0.24783,3632.5,3632.0,0.24785]
[1736094014620,2.20928282,3632.6,3632.0,1.103]
[1736094014621,0.24784,3632.3,3632.0,1.103]
[1736094014919,2.20928282,3632.3,3631.7,4.28260619]
[1736094015216,0.24787,3631.8,3631.7,4.28260619]
[1736094016019,0.24788,3631.7,3631.3,0.2479]
[1736094016216,0.8793,3631.6,3631.3,0.2479]
[1736094017215,4.11721001,3631.6,3631.3,0.2479]
[1736094017917,4.11721001,3631.6,3631.1,1.103]
[1736094018113,0.24791,3631.2,3631.1,1.103]
[1736094018519,3.09448282,3631.5,3630.6,3.2078]
[1736094018720,0.24793,3631.0,3630.7,1.103]
[1736094019016,0.8832,3631.1,3630.6,3.2078]
[1736094019223,0.24792,3631.0,3630.6,4.55875]
[1736094019619,0.24793,3630.9,3630.6,4.3108]
[1736094019821,0.9586,3630.8,3630.6,4.3108]
[1736094020022,1.20654,3630.8,3630.6,4.3108]
[1736094020323,0.9586,3630.8,3630.6,4.3108]
[1736094021020,0.9586,3630.8,3630.6,3.2078]
[1736094021223,0.24794,3630.7,3630.6,3.2078]
[1736094021620,0.9586,3630.8,3630.6,3.2078]
[1736094022015,1.20654,3630.8,3630.6,3.2078]
[1736094022221,0.24794,3630.7,3630.6,3.2078]
[1736094022520,1.20654,3630.8,3630.6,3.2078]
[1736094022725,0.9586,3630.8,3630.6,3.2078]
[1736094022918,0.9586,3630.8,3630.4,1.34996]
[1736094023117,0.9586,3630.8,3630.4,1.102]
[1736094023321,0.9586,3630.8,3630.4,1.34996]
[1736094023520,0.9586,3630.8,3630.4,1.102]
[1736094023913,0.9586,3630.8,3630.7,0.24794]
[1736094024526,3.23791001,3631.0,3630.9,0.24793]
[1736094024725,3.23791001,3631.0,3630.9,2.45721282]
[1736094025420,3.23791001,3631.4,3630.9,2.20928282]
[1736094025612,3.23791001,3631.4,3631.3,0.2479]
[1736094025921,3.23791001,3631.4,3631.3,1.103]
[1736094027125,0.24789,3631.5,3631.3,1.103]
[1736094029727,0.2479,3631.4,3631.3,1.103]
[1736094030424,4.15561001,3631.6,3631.3,1.103]
[1736094030925,4.40349001,3631.6,3631.4,0.24789]
[1736094031225,3.23791001,3631.5,3631.3,0.0733778]
[1736094031421,3.23791001,3631.5,3631.3,0.3212778]
[1736094031727,3.23791001,3631.5,3631.4,0.2479]
[1736094031922,4.40350001,3631.6,3631.4,0.2479]
[1736094032127,4.40350001,3631.6,3631.3,0.3212778]
[1736094032324,0.24789,3631.5,3631.3,0.3212778]
[1736094032929,0.24789,3631.5,3631.3,0.0733778]
[1736094034126,0.24789,3631.5,3631.3,0.3212778]
[1736094034321,4.15561001,3631.6,3631.3,0.0733778]
[1736094034528,4.15561001,3631.6,3630.9,3.2078]
[1736094034727,3.23791001,3631.5,3631.4,0.2479]
[1736094035726,4.15561001,3631.6,3630.9,4.3108]
[1736094035929,0.2479,3631.4,3631.2,0.24791]
[1736094036228,0.2479,3631.4,3630.9,4.3108]
[1736094036229,0.24791,3631.3,3631.1,0.24791]
[1736094036724,0.9631,3631.2,3631.1,0.24791]
[1736094040721,3.23791001,3631.4,3631.3,0.2479]
[1736094040928,3.23791001,3631.4,3631.3,2.45718282]
[1736094041634,2.83111001,3631.4,3631.3,7.48098282]
[1736094042025,2.83111001,3631.4,3631.3,7.45718282]
[1736094042325,2.83111001,3631.4,3631.3,3.56018282]
[1736094042831,1.21643,3632.4,3632.0,0.24785]
[1736094043032,1.21643,3632.4,3632.1,0.24785]
[1736094043232,0.9686,3632.4,3632.1,0.24785]
[1736094043430,0.9686,3632.4,3632.3,0.24783]
[1736094043630,0.9686,3632.4,3632.2,0.24784]
[1736094043829,0.9686,3632.4,3632.1,0.24785]
[1736094044027,0.9686,3632.4,3632.2,0.24784]
[1736094045834,1.21643,3632.4,3632.1,0.24784]
[1736094046233,0.9686,3632.4,3632.1,0.24784]
[1736094046535,1.21643,3632.4,3632.0,1.35085]
[1736094047534,1.21643,3632.4,3632.0,1.103]
[1736094048040,1.21643,3632.4,3632.1,0.24785]
[1736094050237,0.9686,3632.4,3632.1,0.24785]
[1736094051236,1.21643,3632.4,3632.0,1.35085]
[1736094052139,0.24785,3632.0,3631.8,4.3038]
[1736094052440,0.9384,3631.9,3631.8,3.2078]
[1736094052646,0.9384,3631.9,3631.8,3.45567]
[1736094054739,0.9384,3631.9,3631.8,3.2078]
[1736094055138,0.9384,3631.9,3631.8,3.45567]
[1736094057939,0.9384,3631.9,3631.8,3.2078]
[1736094058144,0.9384,3631.9,3631.8,3.45567]
[1736094059142,5.28330328,3632.4,3631.8,3.2078]
[1736094059350,5.28330328,3632.4,3632.3,0.24783]
[1736094060245,0.9686,3632.4,3632.3,0.24783]
[1736094060856,0.9686,3632.4,3631.8,3.213]
[1736094061148,0.9686,3632.4,3632.3,0.24783]
[1736094061950,0.9686,3632.4,3632.2,0.24784]
[1736094062343,3.17788282,3632.4,3631.8,3.2078]
[1736094062946,0.24785,3632.1,3631.8,3.45567]
[1736094063147,0.9613,3632.0,3631.8,3.2078]
[1736094063347,0.9613,3632.0,3631.6,0.24788]
[1736094063348,0.24786,3631.9,3631.6,0.24788]
[1736094063544,0.24786,3631.9,3631.7,0.24787]
[1736094063545,0.9825,3631.9,3631.7,0.24787]
[1736094065651,0.9825,3631.9,3631.3,4.3038]
[1736094065951,0.9825,3631.9,3631.8,0.24787]
[1736094067350,0.9825,3631.9,3631.3,4.3038]
[1736094067654,0.24788,3631.7,3631.5,0.24789]
[1736094067846,0.9727,3631.6,3631.5,0.24789]
[1736094068855,1.38591455,3631.6,3631.5,0.24789]
[1736094069152,1.38591455,3631.6,3631.4,0.24789]
[1736094070256,1.38591455,3631.6,3631.1,1.096]
[1736094070455,0.9727,3631.6,3631.5,0.24789]
[1736094071059,0.9727,3631.6,3631.3,3.2078]
[1736094071253,0.9727,3631.6,3631.5,0.24789]
[1736094071652,0.9727,3631.6,3631.3,3.2078]
[1736094071857,0.9727,3631.6,3631.4,0.24789]
[1736094072854,0.41326111,3631.5,3631.4,0.24789]
[1736094073657,0.41326111,3631.5,3631.4,2.45717282]
[1736094073947,0.41326111,3631.5,3631.4,2.46197282]
[1736094074654,4.31470328,3632.2,3631.9,0.24786]
[1736094075160,4.31470328,3632.2,3631.8,1.096]
[1736094075357,0.24786,3632.0,3631.8,1.096]
[1736094075956,0.24786,3631.9,3631.8,1.096]
[1736094076452,4.31470328,3632.1,3631.8,1.096]
[1736094076660,4.56255328,3632.1,3631.8,1.096]
[1736094076853,4.56255328,3632.1,3631.8,1.34386]
[1736094077053,4.31470328,3632.1,3631.9,0.24786]
[1736094077261,4.31470328,3632.1,3631.8,1.096]
[1736094077464,4.31470328,3631.9,3631.8,1.34387]
[1736094077961,4.31470328,3631.9,3631.2,0.61977]
[1736094077962,0.24787,3631.8,3631.5,0.24788]
[1736094078161,0.9488,3631.7,3631.2,3.2078]
[1736094078463,1.21909,3631.6,3631.3,0.2479]
[1736094079864,0.9712,3631.6,3631.4,0.24789]
[1736094080667,4.72790676,3631.5,3631.3,0.2479]
[1736094080861,4.72790676,3631.5,3631.2,3.45571]
[1736094081362,4.72790676,3631.5,3631.3,0.2479]
[1736094081564,4.72790676,3631.5,3631.2,3.2078]
[1736094081765,4.72790676,3631.5,3631.3,0.2479]
[1736094082063,4.72790676,3631.5,3631.4,0.2479]
[1736094082265,4.72790676,3631.5,3631.4,0.2531]
[1736094083363,5.37442864,3631.8,3631.4,0.0052]
[1736094083563,4.72790676,3632.0,3631.9,0.24786]
[1736094084861,0.41320348,3632.0,3631.9,0.24786]
[1736094087465,4.72790676,3632.0,3631.9,0.24786]
[1736094088469,0.41320348,3632.0,3631.9,0.24786]
[1736094089664,0.9631,3632.1,3631.8,1.1]
[1736094089875,0.9631,3632.1,3632.0,0.24785]
[1736094091374,6.10134357,3632.1,3631.9,0.24786]
[1736094092572,10.51267221,3632.0,3631.9,0.24786]
[1736094094572,10.51267221,3632.0,3631.6,1.1]
[1736094094968,10.51267221,3632.0,3631.9,0.24786]
[1736094095973,10.51267221,3632.0,3631.8,0.24786]
[1736094096774,0.24787,3631.8,3631.4,0.2479]
[1736094096974,0.9428,3631.7,3631.4,1.3479]
[1736094097175,0.9333,3631.6,3631.4,1.3479]
[1736094097480,0.9333,3631.6,3631.5,0.24789]
[1736094097876,0.9333,3631.6,3631.4,1.34789]
[1736094098084,4.73477681,3631.5,3631.4,1.34789]
[1736094099175,0.41320348,3631.5,3631.4,1.34789]
[1736094099778,0.41320348,3631.5,3631.4,1.1]
[1736094099977,0.41320348,3631.5,3631.3,4.5557]
[1736094100184,0.895,3631.4,3631.3,4.5557]
[1736094100383,0.895,3631.4,3631.3,3.4557]
[1736094101584,5.62977681,3631.4,3631.3,3.4557]
[1736094107775,5.87767681,3631.4,3631.3,3.2078]
[1736094108375,5.62977681,3631.4,3631.1,1.34791]
[1736094108582,0.9243,3631.3,3631.1,1.1]
[1736094108974,0.9698,3631.2,3631.1,1.34792]
[1736094109586,5.70457681,3631.2,3631.1,1.34792]
[1736094111290,5.70457681,3631.2,3631.1,0.24792]
[1736094112082,5.70457681,3631.2,3631.0,0.24792]
[1736094112284,5.70457681,3631.2,3630.9,4.3048]
[1736094112584,5.70457681,3631.2,3631.1,0.24792]
[1736094112784,5.70457681,3631.2,3630.9,4.3048]
[1736094112988,5.70457681,3631.2,3631.1,0.24792]
[1736094114189,1.38300348,3631.2,3631.1,0.24792]
[1736094115790,0.9698,3631.2,3631.1,0.24792]
[1736094117487,1.38300348,3631.2,3631.1,0.24792]
[1736094120791,1.38300348,3631.2,3630.9,3.2078]
[1736094120989,1.38300348,3631.2,3631.1,0.24792]
[1736094121886,5.70567436,3631.2,3630.9,3.2078]
[1736094122096,5.95358436,3631.2,3630.9,3.45573]
[1736094122394,5.95358436,3631.2,3630.9,0.24793]
[1736094122694,5.70567436,3631.2,3631.1,0.24792]
[1736094123593,0.9698,3631.2,3631.1,0.24792]
[1736094124698,1.38307347,3631.2,3631.1,0.24792]
[1736094125994,1.38307347,3631.2,3631.0,0.24792]
[1736094126196,1.38307347,3631.2,3630.8,1.097]
[1736094126392,1.38307347,3631.2,3631.0,0.24792]
[1736094126594,1.38307347,3631.2,3630.9,0.24793]
[1736094126998,1.38307347,3631.2,3631.0,0.24792]
[1736094127194,0.41327347,3631.1,3631.0,0.24792]
[1736094128597,4.73199319,3631.1,3631.0,0.24792]
[1736094129906,0.41327347,3631.1,3631.0,0.24792]
[1736094131098,5.28851972,3631.2,3631.0,0.24792]
[1736094131300,4.20882476,3631.2,3631.1,3.45572]
[1736094132305,1.38306226,3631.2,3631.1,3.45572]
[1736094133301,0.9698,3631.2,3631.1,3.45572]
[1736094135003,1.38306226,3631.2,3631.1,3.45572]
[1736094137210,1.38306226,3631.2,3631.1,4.45710258]
[1736094137608,0.9698,3631.2,3631.1,4.45710258]
[1736094142111,4.21120427,3631.2,3631.1,4.45710258]
[1736094143215,1.38303909,3631.2,3631.1,4.45710258]
[1736094143822,0.41323909,3631.2,3631.1,5.45848516]
[1736094144018,0.41323909,3631.2,3631.1,10.45848516]
[1736094144719,0.41323909,3631.2,3631.1,11.55548516]
[1736094144916,2.16110352,3631.2,3631.1,11.30756516]
[1736094145111,2.16110352,3631.2,3631.1,11.55548516]
[1736094146016,2.16110352,3631.4,3631.1,11.30756516]
[1736094146216,2.16110352,3631.4,3631.3,1.24928258]
[1736094147123,2.16110352,3631.4,3631.3,2.46637341]
[1736094147325,2.16110352,3631.4,3631.3,6.79798382]
[1736094147712,2.16110352,3631.4,3631.3,10.00578382]
[1736094149926,2.16110352,3631.4,3631.3,5.67417341]
[1736094151523,3.06970352,3631.4,3631.3,5.67417341]
[1736094153024,3.06970352,3631.4,3631.3,6.77117341]
[1736094153927,4.15025528,3631.4,3631.3,6.77117341]
[1736094155025,0.9086,3631.4,3631.3,6.77117341]
[1736094156630,3.06720738,3631.4,3631.3,4.3048]
[1736094156832,3.06720738,3631.4,3631.3,3.4557]
[1736094157030,3.06720738,3631.4,3631.3,4.3048]
[1736094157331,3.06720738,3631.4,3631.3,4.5527]
[1736094157929,4.56350366,3631.4,3631.3,3.4557]
[1736094158226,4.56350366,3631.4,3631.3,4.5527]
[1736094158619,4.56350366,3631.4,3631.3,1.3449]
[1736094159020,4.15025528,3631.4,3631.3,1.3449]
[1736094160224,4.56350366,3631.4,3631.3,1.3449]
[1736094161435,1.32184838,3631.4,3631.3,1.3449]
[1736094162830,0.9086,3631.4,3631.3,1.3449]
[1736094163032,0.9086,3631.4,3631.3,1.097]
[1736094164028,1.32184838,3631.4,3631.3,1.097]
[1736094164337,1.32184838,3631.4,3631.3,1.3449]
[1736094167032,1.32184838,3631.4,3631.3,2.3462349]
[1736094167728,4.55986042,3631.4,3631.3,2.3462349]
[1736094169036,3.06746744,3631.4,3631.3,2.3462349]
[1736094172028,0.9086,3631.4,3631.3,2.3462349]
[1736094174239,2.32941204,3631.5,3631.4,0.2479]
[1736094176041,2.16020637,3631.9,3631.4,15.65412979]
[1736094176338,2.16020637,3631.9,3631.8,4.4570049]
[1736094177136,2.16020637,3631.9,3631.8,8.78685801]
[1736094178346,2.16020637,3631.9,3631.8,4.4570049]
[1736094179944,2.16020637,3632.0,3631.8,8.53898801]
[1736094180143,2.16020637,3632.0,3631.9,1.2491949]
[1736094181140,2.16020637,3632.0,3631.9,2.2505298]